[Event "Live Chess"]
[Site "Chess.com"]
[Date "2023.05.20"]
[Round "-"]
[White "friarnator"]
[Black "Trendle"]
[Result "0-1"]
[WhiteElo "1987"]
[BlackElo "2673"]
[TimeControl "300"]
[EndTime "13:18:25 PDT"]
[Termination "Trendle won by checkmate"]

1. e4 {[%clk 0:04:57.9]} 1... e5 {[%clk 0:04:54.9]} 2. Nf3 {[%clk 0:04:55.7]}
2... Nc6 {[%clk 0:04:53.7]} 3. Bb5 {[%clk 0:04:53.9]} 3... a6 {[%clk 0:04:50.6]}
4. Ba4 {[%clk 0:04:51]} 4... Nf6 {[%clk 0:04:48.2]} 5. O-O {[%clk 0:04:50.3]}
5... b5 {[%clk 0:04:37.4]} 6. Bb3 {[%clk 0:04:48.8]} 6... Be7 {[%clk 0:04:37]}
7. Re1 {[%clk 0:04:46.3]} 7... O-O {[%clk 0:04:33.8]} 8. c3 {[%clk 0:04:32.1]}
8... d5 {[%clk 0:04:29]} 9. exd5 {[%clk 0:04:32]} 9... Nxd5 {[%clk 0:04:28.1]}
10. Nxe5 {[%clk 0:04:31]} 10... Nxe5 {[%clk 0:04:28]} 11. Rxe5 {[%clk
0:04:30.4]} 11... c6 {[%clk 0:04:27.5]} 12. d3 {[%clk 0:04:15]} 12... Bd6 {[%clk
0:04:25.4]} 13. Re1 {[%clk 0:04:13.7]} 13... Qh4 {[%clk 0:04:23.8]} 14. g3
{[%clk 0:04:11.5]} 14... Qh3 {[%clk 0:04:22.9]} 15. Re4 {[%clk 0:04:09.8]} 15...
Bd7 {[%clk 0:04:07.1]} 16. Nd2 {[%clk 0:03:54.9]} 16... Nf6 {[%clk 0:03:59.4]}
17. Rh4 {[%clk 0:03:49.3]} 17... Qf5 {[%clk 0:03:58.8]} 18. Qf3 {[%clk
0:03:19.7]} 18... Rae8 {[%clk 0:03:54.2]} 19. Qxf5 {[%clk 0:03:04.4]} 19... Bxf5
{[%clk 0:03:54.1]} 20. Nf3 {[%clk 0:02:48.6]} 20... Bxd3 {[%clk 0:03:50.5]} 21.
Rd4 {[%clk 0:02:42.2]} 21... Be2 {[%clk 0:03:45.1]} 22. Rxd6 {[%clk 0:02:34.1]}
22... Bxf3 {[%clk 0:03:41.1]} 23. Bf4 {[%clk 0:02:00.3]} 23... Nd5 {[%clk
0:03:26.6]} 24. Bxd5 {[%clk 0:01:53.2]} 24... Bxd5 {[%clk 0:03:26.5]} 25. Be3
{[%clk 0:01:48.8]} 25... Re4 {[%clk 0:03:22.8]} 26. a4 {[%clk 0:01:45.2]} 26...
bxa4 {[%clk 0:03:19.9]} 27. Bd4 {[%clk 0:01:33.6]} 27... Rfe8 {[%clk 0:03:16.5]}
28. Kf1 {[%clk 0:01:31.7]} 28... h5 {[%clk 0:03:12.9]} 29. Rxa4 {[%clk
0:01:26.4]} 29... Re1# {[%clk 0:03:09.9]} 0-1

[Event "Live Chess"]
[Site "Chess.com"]
[Date "2023.05.20"]
[Round "-"]
[White "Hacker_2009"]
[Black "gmnorfolk"]
[Result "0-1"]
[WhiteElo "1908"]
[BlackElo "2072"]
[TimeControl "300"]
[EndTime "13:18:25 PDT"]
[Termination "gmnorfolk won by resignation"]

1. d4 {[%clk 0:04:57.3]} 1... Nf6 {[%clk 0:04:58.4]} 2. Nf3 {[%clk 0:04:55.5]}
2... d5 {[%clk 0:04:57]} 3. e3 {[%clk 0:04:54.3]} 3... g6 {[%clk 0:04:55.4]} 4.
c4 {[%clk 0:04:53.4]} 4... Bg7 {[%clk 0:04:54.8]} 5. Nc3 {[%clk 0:04:52]} 5...
O-O {[%clk 0:04:53.8]} 6. Be2 {[%clk 0:04:49.7]} 6... c5 {[%clk 0:04:52.8]} 7.
O-O {[%clk 0:04:49]} 7... cxd4 {[%clk 0:04:51.7]} 8. Nxd4 {[%clk 0:04:47.6]}
8... Nc6 {[%clk 0:04:50.7]} 9. cxd5 {[%clk 0:04:46.5]} 9... Nxd5 {[%clk
0:04:47.6]} 10. Nxd5 {[%clk 0:04:46.1]} 10... Qxd5 {[%clk 0:04:45.4]} 11. Bf3
{[%clk 0:04:45.7]} 11... Qc5 {[%clk 0:04:34.9]} 12. Nxc6 {[%clk 0:04:43.4]}
12... bxc6 {[%clk 0:04:33.3]} 13. Rb1 {[%clk 0:04:39.8]} 13... Be6 {[%clk
0:04:30.5]} 14. b3 {[%clk 0:04:37.9]} 14... Rfd8 {[%clk 0:04:26.2]} 15. Qe2
{[%clk 0:04:36.7]} 15... Rac8 {[%clk 0:04:09.8]} 16. Bb2 {[%clk 0:04:35.6]}
16... Qb5 {[%clk 0:04:05.2]} 17. Bxg7 {[%clk 0:04:32.8]} 17... Kxg7 {[%clk
0:03:55.6]} 18. Rbc1 {[%clk 0:04:30.8]} 18... Qxe2 {[%clk 0:03:50.5]} 19. Bxe2
{[%clk 0:04:29.7]} 19... Rd2 {[%clk 0:03:49.9]} 20. Bf3 {[%clk 0:04:27.2]} 20...
c5 {[%clk 0:03:46.5]} 21. a4 {[%clk 0:04:22.7]} 21... Bxb3 {[%clk 0:03:44.2]}
22. a5 {[%clk 0:04:19.3]} 22... c4 {[%clk 0:03:41]} 23. a6 {[%clk 0:04:18.3]}
23... c3 {[%clk 0:03:32.7]} 24. Bb7 {[%clk 0:04:14.8]} 24... Rc5 {[%clk
0:03:28.6]} 25. Rb1 {[%clk 0:04:11.2]} 25... c2 {[%clk 0:03:20.7]} 26. Rxb3
{[%clk 0:04:09.7]} 26... c1=Q {[%clk 0:03:19.1]} 0-1

[Event "Live Chess"]
[Site "Chess.com"]
[Date "2023.05.20"]
[Round "-"]
[White "Bot_Boy"]
[Black "Nazar_777"]
[Result "0-1"]
[WhiteElo "330"]
[BlackElo "1575"]
[TimeControl "300"]
[EndTime "13:18:26 PDT"]
[Termination "Nazar_777 won by checkmate"]

1. e4 {[%clk 0:04:54.7]} 1... e6 {[%clk 0:04:52.6]} 2. Nf3 {[%clk 0:04:42.4]}
2... a6 {[%clk 0:04:51.5]} 3. d4 {[%clk 0:04:38.6]} 3... h5 {[%clk 0:04:50.9]}
4. Bd3 {[%clk 0:04:34.5]} 4... c5 {[%clk 0:04:50]} 5. Na3 {[%clk 0:04:20.8]}
5... cxd4 {[%clk 0:04:49]} 6. Nc4 {[%clk 0:04:18]} 6... Nc6 {[%clk 0:04:47.3]}
7. e5 {[%clk 0:04:12]} 7... b5 {[%clk 0:04:46.2]} 8. Nd6+ {[%clk 0:04:05.7]}
8... Bxd6 {[%clk 0:04:44.6]} 9. exd6 {[%clk 0:04:03.1]} 9... Nf6 {[%clk
0:04:43.9]} 10. Bg5 {[%clk 0:03:53.7]} 10... Nb4 {[%clk 0:04:42.3]} 11. Be2
{[%clk 0:03:23]} 11... Qb6 {[%clk 0:04:39.8]} 12. Bxf6 {[%clk 0:02:50.6]} 12...
gxf6 {[%clk 0:04:37.4]} 13. O-O {[%clk 0:02:39]} 13... Qxd6 {[%clk 0:04:35]} 14.
a3 {[%clk 0:02:17.5]} 14... Nd5 {[%clk 0:04:32]} 15. Qxd4 {[%clk 0:01:58.3]}
15... Bb7 {[%clk 0:04:27.9]} 16. c4 {[%clk 0:01:44.4]} 16... bxc4 {[%clk
0:04:25.6]} 17. Bxc4 {[%clk 0:01:40.4]} 17... Qc7 {[%clk 0:04:24.2]} 18. Bxd5
{[%clk 0:01:33.9]} 18... Bxd5 {[%clk 0:04:23]} 19. Nd2 {[%clk 0:01:22.7]} 19...
Rg8 {[%clk 0:04:19.3]} 20. f3 {[%clk 0:01:11.8]} 20... Qb7 {[%clk 0:04:17.2]}
21. Ne4 {[%clk 0:00:54.5]} 21... Bxe4 {[%clk 0:04:11.8]} 22. Qxe4 {[%clk
0:00:31.4]} 22... Qxe4 {[%clk 0:04:09.5]} 23. fxe4 {[%clk 0:00:30.4]} 23... Ke7
{[%clk 0:04:08.6]} 24. b4 {[%clk 0:00:23.3]} 24... Rg4 {[%clk 0:04:07.3]} 25.
Rae1 {[%clk 0:00:17.9]} 25... Rh8 {[%clk 0:04:05.9]} 26. a4 {[%clk 0:00:14.2]}
26... Rhg8 {[%clk 0:04:04.6]} 27. b5 {[%clk 0:00:12.9]} 27... Rxg2+ {[%clk
0:04:03]} 28. Kh1 {[%clk 0:00:09.2]} 28... Ra2 {[%clk 0:04:01.6]} 29. b6 {[%clk
0:00:05.4]} 29... Rgg2 {[%clk 0:04:00.4]} 30. Rg1 {[%clk 0:00:02.6]} 30... Rxh2#
{[%clk 0:03:59.1]} 0-1

[Event "Live Chess"]
[Site "Chess.com"]
[Date "2023.05.20"]
[Round "-"]
[White "NatashaRegan"]
[Black "BillythekidFellowes"]
[Result "0-1"]
[WhiteElo "1804"]
[BlackElo "2039"]
[TimeControl "300"]
[EndTime "13:18:30 PDT"]
[Termination "BillythekidFellowes won by resignation"]

1. Nf3 {[%clk 0:04:55.6]} 1... Nc6 {[%clk 0:04:55.6]} 2. d4 {[%clk 0:04:53.3]}
2... d5 {[%clk 0:04:54]} 3. c4 {[%clk 0:04:52.2]} 3... e6 {[%clk 0:04:51.7]} 4.
Nc3 {[%clk 0:04:48.8]} 4... Nf6 {[%clk 0:04:48.2]} 5. Bg5 {[%clk 0:04:44.2]}
5... Be7 {[%clk 0:04:47.3]} 6. e3 {[%clk 0:04:38.7]} 6... h6 {[%clk 0:04:45]} 7.
Bh4 {[%clk 0:04:36.6]} 7... Ne4 {[%clk 0:04:40.6]} 8. Bxe7 {[%clk 0:04:31.5]}
8... Qxe7 {[%clk 0:04:38.7]} 9. Nxe4 {[%clk 0:04:21.9]} 9... dxe4 {[%clk
0:04:36.6]} 10. Nd2 {[%clk 0:04:18.4]} 10... f5 {[%clk 0:04:34.8]} 11. d5 {[%clk
0:04:14.9]} 11... Ne5 {[%clk 0:04:30.2]} 12. Be2 {[%clk 0:04:06.8]} 12... O-O
{[%clk 0:04:21.1]} 13. O-O {[%clk 0:04:04.4]} 13... Bd7 {[%clk 0:03:59.1]} 14.
Qb3 {[%clk 0:03:52.8]} 14... Rad8 {[%clk 0:03:55]} 15. Qb6 {[%clk 0:03:42]}
15... axb6 {[%clk 0:03:50.3]} 0-1

[Event "Live Chess"]
[Site "Chess.com"]
[Date "2023.05.20"]
[Round "-"]
[White "Tema1107"]
[Black "xx_blindpuffin_xx"]
[Result "1-0"]
[WhiteElo "1982"]
[BlackElo "2192"]
[TimeControl "300"]
[EndTime "13:18:43 PDT"]
[Termination "Tema1107 won by resignation"]

1. c4 {[%clk 0:04:59.1]} 1... e6 {[%clk 0:04:58.8]} 2. Nc3 {[%clk 0:04:47.3]}
2... d5 {[%clk 0:04:57.6]} 3. cxd5 {[%clk 0:04:46.5]} 3... exd5 {[%clk
0:04:56.2]} 4. Nf3 {[%clk 0:04:46.4]} 4... c6 {[%clk 0:04:55.7]} 5. g3 {[%clk
0:04:44.9]} 5... Bd6 {[%clk 0:04:55.1]} 6. Bg2 {[%clk 0:04:44.5]} 6... Ne7
{[%clk 0:04:54.7]} 7. O-O {[%clk 0:04:44.1]} 7... O-O {[%clk 0:04:54.4]} 8. e4
{[%clk 0:04:43.7]} 8... dxe4 {[%clk 0:04:51.9]} 9. Nxe4 {[%clk 0:04:43.6]} 9...
Bc7 {[%clk 0:04:51.5]} 10. d4 {[%clk 0:04:41.7]} 10... Nd5 {[%clk 0:04:50.2]}
11. Re1 {[%clk 0:04:39.4]} 11... Bf5 {[%clk 0:04:47.8]} 12. Nc3 {[%clk
0:04:38.4]} 12... Nxc3 {[%clk 0:04:41.4]} 13. bxc3 {[%clk 0:04:38.3]} 13... Nd7
{[%clk 0:04:39.1]} 14. h3 {[%clk 0:04:34.6]} 14... h6 {[%clk 0:04:35.4]} 15. Ba3
{[%clk 0:04:19.9]} 15... Re8 {[%clk 0:04:33.5]} 16. Qb3 {[%clk 0:04:17.4]} 16...
Nb6 {[%clk 0:04:23.1]} 17. Rxe8+ {[%clk 0:04:13.3]} 17... Qxe8 {[%clk
0:04:21.1]} 18. Re1 {[%clk 0:04:13.2]} 18... Qd7 {[%clk 0:04:19.9]} 19. Re7
{[%clk 0:04:08.8]} 19... Qxe7 {[%clk 0:03:51.9]} 20. Bxe7 {[%clk 0:04:08.7]}
20... Re8 {[%clk 0:03:50.6]} 21. Bc5 {[%clk 0:04:05.7]} 21... Re2 {[%clk
0:03:43.2]} 22. Ne5 {[%clk 0:03:57.5]} 22... Re1+ {[%clk 0:03:37]} 23. Kh2
{[%clk 0:03:52.9]} 23... Be6 {[%clk 0:03:35.4]} 24. Qb4 {[%clk 0:03:42.4]} 24...
Nd5 {[%clk 0:03:31.7]} 25. Qxb7 {[%clk 0:03:37.2]} 25... Ba5 {[%clk 0:03:22]}
26. Qxc6 {[%clk 0:03:23.8]} 26... Nxc3 {[%clk 0:03:13.7]} 27. d5 {[%clk
0:03:11.9]} 27... Nxd5 {[%clk 0:02:54.8]} 28. Bxd5 {[%clk 0:03:05.7]} 28... Rxe5
{[%clk 0:02:53.7]} 29. Bxe6 {[%clk 0:03:03.9]} 29... Rxe6 {[%clk 0:02:53]} 30.
Qa8+ {[%clk 0:03:01.4]} 30... Kh7 {[%clk 0:02:52.1]} 31. Qxa7 {[%clk 0:03:00.8]}
31... Be1 {[%clk 0:02:51.2]} 32. Qxf7 {[%clk 0:02:59.3]} 32... Rf6 {[%clk
0:02:47.8]} 33. Qc4 {[%clk 0:02:50.7]} 33... Bxf2 {[%clk 0:02:46.2]} 34. Qc2+
{[%clk 0:02:48.8]} 1-0

[Event "Live Chess"]
[Site "Chess.com"]
[Date "2023.05.20"]
[Round "-"]
[White "MrBlond89"]
[Black "Duke_of_Bebington"]
[Result "1-0"]
[WhiteElo "1394"]
[BlackElo "1587"]
[TimeControl "300"]
[EndTime "13:18:44 PDT"]
[Termination "MrBlond89 won by checkmate"]

1. e4 {[%clk 0:04:57.8]} 1... e5 {[%clk 0:04:58.9]} 2. Nf3 {[%clk 0:04:57]} 2...
Nf6 {[%clk 0:04:57.4]} 3. Nxe5 {[%clk 0:04:55.6]} 3... d6 {[%clk 0:04:56]} 4.
Nf3 {[%clk 0:04:53.6]} 4... Nxe4 {[%clk 0:04:55.3]} 5. d3 {[%clk 0:04:51.4]}
5... Nf6 {[%clk 0:04:53.6]} 6. Be2 {[%clk 0:04:50.4]} 6... Be7 {[%clk
0:04:51.9]} 7. Nc3 {[%clk 0:04:47.2]} 7... d5 {[%clk 0:04:50.1]} 8. Bg5 {[%clk
0:04:37.8]} 8... Be6 {[%clk 0:04:47.1]} 9. Qd2 {[%clk 0:04:35.8]} 9... h6 {[%clk
0:04:43.3]} 10. Bxf6 {[%clk 0:04:32.7]} 10... Bxf6 {[%clk 0:04:41.7]} 11. d4
{[%clk 0:04:29.1]} 11... O-O {[%clk 0:04:37.3]} 12. O-O-O {[%clk 0:04:26.3]}
12... Bg4 {[%clk 0:04:25.3]} 13. h4 {[%clk 0:04:11.5]} 13... Nc6 {[%clk
0:04:02]} 14. Qf4 {[%clk 0:03:57]} 14... Bxf3 {[%clk 0:03:55.3]} 15. gxf3 {[%clk
0:03:50.8]} 15... Re8 {[%clk 0:03:43.5]} 16. Rdg1 {[%clk 0:03:43.1]} 16... Nxd4
{[%clk 0:03:29.1]} 17. Qxh6 {[%clk 0:03:33.9]} 17... Nxe2+ {[%clk 0:03:16.7]}
18. Nxe2 {[%clk 0:03:23.6]} 18... Rxe2 {[%clk 0:03:16.6]} 19. Rxg7+ {[%clk
0:03:21]} 19... Bxg7 {[%clk 0:03:14.5]} 20. Rg1 {[%clk 0:03:18.3]} 20... Qb8
{[%clk 0:03:12.4]} 21. Qxg7# {[%clk 0:03:16.4]} 1-0

[Event "Live Chess"]
[Site "Chess.com"]
[Date "2023.05.20"]
[Round "-"]
[White "weibs440"]
[Black "EdvancedChess"]
[Result "1-0"]
[WhiteElo "929"]
[BlackElo "1870"]
[TimeControl "300"]
[EndTime "13:18:46 PDT"]
[Termination "weibs440 won by resignation"]

1. e4 {[%clk 0:04:57]} 1... e5 {[%clk 0:04:59.3]} 2. Nc3 {[%clk 0:04:55.6]} 2...
Nc6 {[%clk 0:04:58.7]} 3. Bc4 {[%clk 0:04:53.6]} 3... Nf6 {[%clk 0:04:57.9]} 4.
d3 {[%clk 0:04:49.6]} 4... Bb4 {[%clk 0:04:56.6]} 5. f4 {[%clk 0:04:39.8]} 5...
O-O {[%clk 0:04:45.7]} 6. Nf3 {[%clk 0:04:38.4]} 6... d6 {[%clk 0:04:44.5]} 7.
O-O {[%clk 0:04:33.1]} 7... h6 {[%clk 0:04:42.9]} 8. f5 {[%clk 0:04:24.3]} 8...
d5 {[%clk 0:04:41.8]} 9. Nxd5 {[%clk 0:04:16.6]} 9... Nxd5 {[%clk 0:04:40.4]}
10. Bxd5 {[%clk 0:04:13.6]} 10... Ne7 {[%clk 0:04:37.4]} 11. Bb3 {[%clk
0:04:08.7]} 11... Bc5+ {[%clk 0:04:36.2]} 12. Kh1 {[%clk 0:04:06.1]} 12... Nc6
{[%clk 0:04:33.8]} 13. a4 {[%clk 0:04:00.2]} 13... a6 {[%clk 0:04:31.3]} 14. Qe1
{[%clk 0:03:57.1]} 14... Kh8 {[%clk 0:04:22.3]} 15. Qg3 {[%clk 0:03:46.1]} 15...
f6 {[%clk 0:04:19.6]} 16. Qh3 {[%clk 0:03:20.3]} 16... Qe7 {[%clk 0:03:59.6]}
17. Nh4 {[%clk 0:03:14.1]} 1-0

[Event "Live Chess"]
[Site "Chess.com"]
[Date "2023.05.20"]
[Round "-"]
[White "KGreenGator"]
[Black "seabuck"]
[Result "0-1"]
[WhiteElo "1781"]
[BlackElo "1868"]
[TimeControl "300"]
[EndTime "13:18:47 PDT"]
[Termination "seabuck won by checkmate"]

1. c4 {[%clk 0:04:58.7]} 1... e6 {[%clk 0:04:57.7]} 2. Nc3 {[%clk 0:04:58.2]}
2... d5 {[%clk 0:04:56.7]} 3. cxd5 {[%clk 0:04:56.7]} 3... exd5 {[%clk
0:04:55.3]} 4. d4 {[%clk 0:04:55.7]} 4... Nf6 {[%clk 0:04:53.9]} 5. Bd2 {[%clk
0:04:54.7]} 5... c6 {[%clk 0:04:53]} 6. Nf3 {[%clk 0:04:53.5]} 6... Bf5 {[%clk
0:04:51.2]} 7. e3 {[%clk 0:04:52.5]} 7... Bd6 {[%clk 0:04:47.8]} 8. h3 {[%clk
0:04:50]} 8... Nbd7 {[%clk 0:04:44.3]} 9. a3 {[%clk 0:04:45.1]} 9... Ne4 {[%clk
0:04:40.4]} 10. Be2 {[%clk 0:04:38.7]} 10... Ndf6 {[%clk 0:04:37.2]} 11. O-O
{[%clk 0:04:35.7]} 11... O-O {[%clk 0:04:33.7]} 12. b4 {[%clk 0:04:32.5]} 12...
a5 {[%clk 0:04:21.8]} 13. b5 {[%clk 0:04:30]} 13... Nxc3 {[%clk 0:04:17.7]} 14.
Bxc3 {[%clk 0:04:28]} 14... Qb6 {[%clk 0:04:07.3]} 15. bxc6 {[%clk 0:04:23.7]}
15... Qxc6 {[%clk 0:04:00.2]} 16. Be1 {[%clk 0:04:20.2]} 16... Rfc8 {[%clk
0:03:49.7]} 17. a4 {[%clk 0:04:17.8]} 17... Ne4 {[%clk 0:03:41.4]} 18. Bb5
{[%clk 0:04:14.6]} 18... Qc2 {[%clk 0:03:34.1]} 19. Qxc2 {[%clk 0:04:10.7]}
19... Rxc2 {[%clk 0:03:32]} 20. Nh4 {[%clk 0:04:01.1]} 20... Be6 {[%clk
0:03:24.9]} 21. Nf3 {[%clk 0:03:52.1]} 21... b6 {[%clk 0:03:16.6]} 22. Ne5
{[%clk 0:03:44.7]} 22... Rac8 {[%clk 0:03:03.4]} 23. Nd3 {[%clk 0:03:31.3]}
23... Nd2 {[%clk 0:02:47.8]} 24. Bxd2 {[%clk 0:03:27.8]} 24... Rxd2 {[%clk
0:02:46.3]} 25. Rfd1 {[%clk 0:03:25.7]} 25... Rdc2 {[%clk 0:02:21.6]} 26. Rac1
{[%clk 0:03:19.2]} 26... Bf5 {[%clk 0:02:12.3]} 27. Rxc2 {[%clk 0:03:15]} 27...
Rxc2 {[%clk 0:02:10.1]} 28. Ne1 {[%clk 0:03:06]} 28... Rc3 {[%clk 0:02:01.2]}
29. Kf1 {[%clk 0:02:45]} 29... Kf8 {[%clk 0:01:54.1]} 30. Ke2 {[%clk 0:02:43.7]}
30... Ke7 {[%clk 0:01:52.7]} 31. Kd2 {[%clk 0:02:41.9]} 31... Bb4 {[%clk
0:01:46.1]} 32. Ke2 {[%clk 0:02:37.5]} 32... Kd6 {[%clk 0:01:37.3]} 33. Nd3
{[%clk 0:02:32.5]} 33... Rc2+ {[%clk 0:01:31.1]} 34. Kf3 {[%clk 0:02:31.4]}
34... Bxd3 {[%clk 0:01:27.4]} 35. Bxd3 {[%clk 0:02:23]} 35... Rc3 {[%clk
0:01:21.5]} 36. Bxh7 {[%clk 0:02:21.4]} 36... g6 {[%clk 0:01:20.4]} 37. Ra1
{[%clk 0:02:12.5]} 37... Ke7 {[%clk 0:01:17.3]} 38. h4 {[%clk 0:02:09.8]} 38...
Kf6 {[%clk 0:01:16.4]} 39. h5 {[%clk 0:02:06.7]} 39... Kg7 {[%clk 0:01:15.3]}
40. hxg6 {[%clk 0:02:02.1]} 40... fxg6 {[%clk 0:01:14.1]} 41. Bxg6 {[%clk
0:02:00]} 41... Kxg6 {[%clk 0:01:13.5]} 42. Kf4 {[%clk 0:01:58]} 42... Rc2
{[%clk 0:01:11.3]} 43. Rf1 {[%clk 0:01:51]} 43... Bd6+ {[%clk 0:01:09.5]} 44.
Kf3 {[%clk 0:01:49.1]} 44... Rc4 {[%clk 0:01:04.6]} 45. Rb1 {[%clk 0:01:45.9]}
45... Rb4 {[%clk 0:01:03.5]} 46. Rxb4 {[%clk 0:01:31]} 46... axb4 {[%clk
0:01:01.8]} 47. Ke2 {[%clk 0:01:30.6]} 47... Kf5 {[%clk 0:01:00.5]} 48. Kd3
{[%clk 0:01:28.2]} 48... Kg4 {[%clk 0:00:51]} 49. f4 {[%clk 0:01:23]} 49... Kg3
{[%clk 0:00:48.2]} 50. f5 {[%clk 0:01:21.4]} 50... Kxg2 {[%clk 0:00:47]} 51. e4
{[%clk 0:01:20.6]} 51... dxe4+ {[%clk 0:00:45.3]} 52. Kxe4 {[%clk 0:01:19.9]}
52... Kg3 {[%clk 0:00:44.3]} 53. f6 {[%clk 0:01:18.6]} 53... Kg4 {[%clk
0:00:40.6]} 54. f7 {[%clk 0:01:16.7]} 54... Kg5 {[%clk 0:00:38.8]} 55. Kd5
{[%clk 0:01:10.3]} 55... Bf8 {[%clk 0:00:33.8]} 56. Kc4 {[%clk 0:01:09.2]} 56...
Kf6 {[%clk 0:00:32.6]} 57. d5 {[%clk 0:01:06.3]} 57... Kxf7 {[%clk 0:00:31.4]}
58. Kb3 {[%clk 0:01:03.8]} 58... Kf6 {[%clk 0:00:30.1]} 59. Kc4 {[%clk
0:01:02.9]} 59... Ke5 {[%clk 0:00:29.2]} 60. Kb3 {[%clk 0:01:02.4]} 60... Kxd5
{[%clk 0:00:27.8]} 61. Kb2 {[%clk 0:01:01.9]} 61... Kc4 {[%clk 0:00:25.6]} 62.
Ka2 {[%clk 0:01:00.9]} 62... Bg7 {[%clk 0:00:24]} 63. Kb1 {[%clk 0:00:59.7]}
63... b3 {[%clk 0:00:22.7]} 64. Kc1 {[%clk 0:00:58.1]} 64... Kb4 {[%clk
0:00:21.3]} 65. Kb1 {[%clk 0:00:57.2]} 65... Kxa4 {[%clk 0:00:20.6]} 66. Kc1
{[%clk 0:00:56.7]} 66... Ka3 {[%clk 0:00:19.9]} 67. Kb1 {[%clk 0:00:55.4]} 67...
b5 {[%clk 0:00:19.2]} 68. Kc1 {[%clk 0:00:54.5]} 68... Ka2 {[%clk 0:00:18.6]}
69. Kd2 {[%clk 0:00:53.5]} 69... b2 {[%clk 0:00:18.2]} 70. Kd3 {[%clk
0:00:53.2]} 70... b1=Q+ {[%clk 0:00:17.2]} 71. Ke3 {[%clk 0:00:51.5]} 71... Qf5
{[%clk 0:00:16]} 72. Kd2 {[%clk 0:00:49]} 72... Be5 {[%clk 0:00:15.5]} 73. Ke3
{[%clk 0:00:48]} 73... Qf4+ {[%clk 0:00:14.9]} 74. Ke2 {[%clk 0:00:47.1]} 74...
Bd4 {[%clk 0:00:13.9]} 75. Kd3 {[%clk 0:00:46.5]} 75... Qe3+ {[%clk 0:00:12.9]}
76. Kc2 {[%clk 0:00:45.3]} 76... Qc3+ {[%clk 0:00:12.1]} 77. Kd1 {[%clk
0:00:44.3]} 77... Kb2 {[%clk 0:00:08.8]} 78. Ke2 {[%clk 0:00:43.8]} 78... Kc2
{[%clk 0:00:07.4]} 79. Kf1 {[%clk 0:00:43.3]} 79... b4 {[%clk 0:00:06.8]} 80.
Kg2 {[%clk 0:00:42.7]} 80... Qe3 {[%clk 0:00:05.8]} 81. Kf1 {[%clk 0:00:41.9]}
81... Qf2# {[%clk 0:00:04.5]} 0-1

[Event "Live Chess"]
[Site "Chess.com"]
[Date "2023.05.20"]
[Round "-"]
[White "fretle"]
[Black "GMHarry-youtube"]
[Result "1-0"]
[WhiteElo "1860"]
[BlackElo "2096"]
[TimeControl "300"]
[EndTime "13:18:47 PDT"]
[Termination "fretle won by resignation"]

1. f4 {[%clk 0:04:54.9]} 1... e5 {[%clk 0:04:58.6]} 2. fxe5 {[%clk 0:04:53.2]}
2... d6 {[%clk 0:04:58.1]} 3. exd6 {[%clk 0:04:52.6]} 3... Bxd6 {[%clk 0:04:58]}
4. Nf3 {[%clk 0:04:51.3]} 4... Bg4 {[%clk 0:04:57]} 5. g3 {[%clk 0:04:36.3]}
5... h5 {[%clk 0:04:50.6]} 6. d4 {[%clk 0:04:06.7]} 6... h4 {[%clk 0:04:44.7]}
7. Rg1 {[%clk 0:04:05.8]} 7... hxg3 {[%clk 0:04:38]} 8. hxg3 {[%clk 0:04:05.1]}
8... Nf6 {[%clk 0:04:34.8]} 9. Bg5 {[%clk 0:03:53.2]} 9... Qd7 {[%clk
0:04:27.8]} 10. Bxf6 {[%clk 0:03:48.7]} 10... gxf6 {[%clk 0:04:26.3]} 11. Qd3
{[%clk 0:03:46.6]} 11... Nc6 {[%clk 0:04:22.5]} 12. c3 {[%clk 0:03:44.7]} 12...
O-O-O {[%clk 0:04:20.5]} 13. Nbd2 {[%clk 0:03:43.2]} 13... Bf5 {[%clk
0:04:13.5]} 14. e4 {[%clk 0:03:42.1]} 14... Bg6 {[%clk 0:04:12.4]} 15. O-O-O
{[%clk 0:03:39.7]} 15... Rde8 {[%clk 0:04:09.5]} 16. Kb1 {[%clk 0:03:33.8]}
16... f5 {[%clk 0:04:08.3]} 17. Ng5 {[%clk 0:03:15.2]} 17... fxe4 {[%clk
0:04:04.9]} 18. Ngxe4 {[%clk 0:03:14.2]} 18... Qg4 {[%clk 0:04:01.6]} 19. Re1
{[%clk 0:03:05.4]} 19... f5 {[%clk 0:03:54.5]} 20. Nxd6+ {[%clk 0:03:02.4]}
20... cxd6 {[%clk 0:03:53.1]} 21. Rxe8+ {[%clk 0:02:57.4]} 21... Rxe8 {[%clk
0:03:53]} 22. Bg2 {[%clk 0:02:39.5]} 22... f4 {[%clk 0:03:49.1]} 23. Be4 {[%clk
0:02:38.7]} 23... Bxe4 {[%clk 0:03:47]} 24. Nxe4 {[%clk 0:02:37.6]} 24... f3
{[%clk 0:03:44.3]} 25. Nxd6+ {[%clk 0:02:34.2]} 25... Kd7 {[%clk 0:03:41.2]} 26.
Nxe8 {[%clk 0:02:25.8]} 26... Kxe8 {[%clk 0:03:36.6]} 27. Re1+ {[%clk
0:02:09.9]} 27... Kd8 {[%clk 0:03:34]} 28. Qe4 {[%clk 0:02:02]} 28... Qxg3
{[%clk 0:03:29.8]} 29. Qe8+ {[%clk 0:01:55.4]} 29... Kc7 {[%clk 0:03:28.5]} 30.
Qf7+ {[%clk 0:01:28.9]} 30... Kb6 {[%clk 0:03:23.3]} 31. Rf1 {[%clk 0:01:27.2]}
31... f2 {[%clk 0:03:09.1]} 32. Qxf2 {[%clk 0:01:26]} 32... Qd3+ {[%clk
0:03:08]} 33. Ka1 {[%clk 0:01:23.2]} 33... a5 {[%clk 0:03:05.1]} 34. d5+ {[%clk
0:01:21.7]} 34... Ka6 {[%clk 0:03:03.3]} 35. dxc6 {[%clk 0:01:20.9]} 35... bxc6
{[%clk 0:03:03]} 36. Re1 {[%clk 0:01:17.9]} 36... a4 {[%clk 0:03:01.8]} 37. Qe2
{[%clk 0:01:16.9]} 37... Qxe2 {[%clk 0:02:58.2]} 38. Rxe2 {[%clk 0:01:16.8]}
38... a3 {[%clk 0:02:57.6]} 39. bxa3 {[%clk 0:01:15.8]} 39... Kb5 {[%clk
0:02:56.9]} 40. Kb2 {[%clk 0:01:15.6]} 40... c5 {[%clk 0:02:56.8]} 41. Kb3
{[%clk 0:01:15]} 41... c4+ {[%clk 0:02:56.4]} 42. Kb2 {[%clk 0:01:14.2]} 42...
Ka4 {[%clk 0:02:56.3]} 43. Re4 {[%clk 0:01:13.2]} 43... Kb5 {[%clk 0:02:54.9]}
44. a4+ {[%clk 0:01:12.6]} 44... Ka5 {[%clk 0:02:52.9]} 45. Rxc4 {[%clk
0:01:11.2]} 45... Kb6 {[%clk 0:02:52.1]} 46. Rh4 {[%clk 0:01:09.5]} 46... Ka5
{[%clk 0:02:50.7]} 47. Kb3 {[%clk 0:01:09.4]} 47... Kb6 {[%clk 0:02:50.2]} 48.
Kb4 {[%clk 0:01:08.8]} 48... Ka6 {[%clk 0:02:49.9]} 49. Rh5 {[%clk 0:01:06.9]}
49... Kb7 {[%clk 0:02:49.6]} 50. Rb5+ {[%clk 0:01:05.9]} 50... Ka6 {[%clk
0:02:48.5]} 51. c4 {[%clk 0:01:05]} 51... Ka7 {[%clk 0:02:47.8]} 52. c5 {[%clk
0:01:04.9]} 52... Ka6 {[%clk 0:02:47.7]} 53. c6 {[%clk 0:01:04.3]} 53... Ka7
{[%clk 0:02:45.4]} 54. c7 {[%clk 0:01:03.2]} 54... Ka6 {[%clk 0:02:45.1]} 1-0